bitfinex/quotes_ETHUSD_20250508
["timestamp","ask_amount","ask_price","bid_price","bid_amount"]
[1746704390406,5.12312474,1952.0,1951.7,0.14252573]
[1746704390622,5.12278768,1952.1,1951.8,1.73399322]
[1746704390909,5.12278768,1952.1,1951.9,0.14161889]
[1746704391412,5.12278768,1952.1,1951.8,4.73399322]
[1746704391563,10.24569219,1952.1,1951.9,0.14161889]
[1746704391903,5.12295081,1952.0,1951.8,4.73399322]
[1746704392506,5.12252142,1952.2,1951.9,0.7765]
[1746704392705,5.12273669,1952.1,1951.8,4.73399322]
[1746704393378,5.95432142,1952.2,1951.8,4.73399322]
[1746704393379,5.1229934,1952.0,1951.8,4.73399322]
[1746704393585,5.12283197,1952.1,1951.8,4.73399322]
[1746704393968,5.12283197,1952.1,1951.8,9.85746843]
[1746704394167,5.95438942,1952.2,1951.9,0.98574684]
[1746704394503,5.12258942,1952.2,1951.9,0.98574684]
[1746704395471,5.12273162,1952.1,1951.8,4.73399322]
[1746704395968,5.12299382,1952.0,1951.8,4.73399322]
[1746704396610,5.12296217,1952.0,1951.8,4.73399322]
[1746704397195,5.12286759,1952.1,1951.8,4.73399322]
[1746704399115,5.12296563,1952.0,1951.8,4.73399322]
[1746704399321,5.12286759,1952.1,1951.8,4.73399322]
[1746704399322,5.12284502,1952.1,1951.8,4.73399322]
[1746704399883,10.24521305,1952.2,1951.8,9.85743071]
[1746704400088,5.12257895,1952.2,1951.8,9.85743071]
[1746704400274,5.12257895,1952.2,1951.8,11.43724369]
[1746704400702,5.12234443,1952.3,1952.0,1.73399322]
[1746704401058,5.12234443,1952.3,1952.0,5.53939322]
[1746704401328,5.12230771,1952.3,1952.1,0.14046476]
[1746704401634,5.12242598,1952.2,1952.1,0.14046476]
[1746704401926,5.12242598,1952.2,1951.9,3.0]
[1746704402132,5.12242598,1952.2,1952.1,0.14046476]
[1746704402332,5.12257536,1952.2,1952.0,0.1408776]
[1746704403201,5.90551713,1952.3,1952.0,0.1408776]
[1746704403615,5.12258569,1952.2,1952.0,0.1408776]
[1746704405535,5.12268838,1952.1,1952.0,0.1408776]
[1746704406039,5.12321327,1951.9,1951.8,3.0]
[1746704406244,5.12321327,1951.9,1951.8,0.1417034]
[1746704406439,5.12321327,1951.9,1951.6,8.91538718]
[1746704406736,5.12313365,1952.0,1951.7,2.76346467]
[1746704407504,5.12283634,1952.1,1951.7,7.93823924]
[1746704407717,5.12283634,1952.1,1951.7,13.06177788]
[1746704407929,5.12283634,1952.1,1951.7,7.88700331]
[1746704408132,5.12283634,1952.1,1951.8,0.78870033]
[1746704408397,5.12283634,1952.1,1951.9,0.14129048]
[1746704408610,5.12283634,1952.1,1951.7,7.74488694]
[1746704408848,5.12283634,1952.1,1951.8,0.1417034]
[1746704409246,5.12312258,1952.0,1951.8,0.1417034]
[1746704410558,10.24574289,1952.1,1951.8,0.1417034]
[1746704410868,5.12260807,1952.2,1951.9,3.0]
[1746704411157,6.1839,1952.5,1952.0,0.14105276]
[1746704411340,5.12210505,1952.4,1952.1,4.73399322]
[1746704411710,5.12210505,1952.4,1952.2,0.14022713]
[1746704412110,5.12190124,1952.4,1952.1,4.73399322]
[1746704412311,5.12190124,1952.4,1952.3,0.13981437]
[1746704412506,5.12190124,1952.4,1952.2,0.14022713]
[1746704412754,5.12190124,1952.4,1952.3,0.13981437]
[1746704413056,10.24403507,1952.4,1952.1,4.73399322]
[1746704413213,10.24403507,1952.4,1952.2,0.14022713]
[1746704413413,5.12190124,1952.4,1952.1,4.73399322]
[1746704413614,5.12190124,1952.4,1952.2,0.14022713]
[1746704413814,5.12190124,1952.4,1952.1,4.73399322]
[1746704414058,5.12190124,1952.4,1952.2,0.14022713]
[1746704414217,5.12190124,1952.4,1952.1,4.73399322]
[1746704414417,5.12190124,1952.4,1952.2,0.14022713]
[1746704414637,5.12190124,1952.4,1952.1,4.73399322]
[1746704414839,5.12190124,1952.4,1952.2,0.14022713]
[1746704415139,5.12190124,1952.4,1952.1,4.73399322]
[1746704415312,5.12190124,1952.4,1952.3,0.13981437]
[1746704415513,5.12190124,1952.4,1952.2,3.96732713]
[1746704415714,5.12190124,1952.4,1952.3,0.13981437]
[1746704416940,10.50180893,1952.5,1952.3,0.13981437]
[1746704418083,15.6236853,1952.5,1952.3,0.13981437]
[1746704418576,10.50180893,1952.5,1952.3,0.13981437]
[1746704419074,15.62370034,1952.5,1952.3,0.13981437]
[1746704419461,5.12190124,1952.4,1952.3,0.13981437]
[1746704420979,5.38,1952.5,1952.3,3.13981437]
[1746704421149,10.50168684,1952.5,1952.3,3.13981437]
[1746704421349,5.38,1952.5,1952.3,3.13981437]
[1746704421552,5.1215494,1952.6,1952.3,3.13981437]
[1746704421771,5.12163919,1952.5,1952.3,0.13981437]
[1746704423992,5.93376486,1952.7,1952.3,1.04874443]
[1746704424584,5.12126486,1952.7,1952.5,0.8022]
[1746704424882,5.1209154,1952.8,1952.6,0.13677296]
[1746704425087,5.12111435,1952.7,1952.6,0.13677296]
[1746704428103,5.91671435,1952.7,1952.3,11.57927839]
[1746704428399,5.12111435,1952.7,1952.4,1.29552608]
[1746704429189,10.24245647,1952.7,1952.4,1.29552608]
[1746704429494,5.12111435,1952.7,1952.4,1.29552608]
[1746704429677,5.12111435,1952.7,1952.4,0.13759824]
[1746704430075,10.24248618,1952.7,1952.4,0.13759824]
[1746704430685,5.12140246,1952.6,1952.4,0.13759824]
[1746704430893,5.12163892,1952.5,1952.4,0.13759824]
[1746704431666,5.12163892,1952.5,1952.4,0.2736286]
[1746704432074,5.12140246,1952.6,1952.4,0.2736286]
[1746704433594,5.12163892,1952.5,1952.4,0.2736286]
[1746704435991,5.93403892,1952.5,1952.4,0.2736286]
[1746704436298,5.12271654,1952.1,1951.8,3.8197]
[1746704436455,5.12271654,1952.1,1951.9,0.65769739]
[1746704438088,5.12260655,1952.2,1951.9,0.65769739]
[1746704438686,5.12260655,1952.2,1951.9,2.39169061]
[1746704439186,10.24526262,1952.2,1951.9,2.39169061]
[1746704439386,5.12260655,1952.2,1951.9,2.39169061]
[1746704439587,5.12270269,1952.1,1951.9,2.39169061]
[1746704440160,5.12260655,1952.2,1951.9,2.39169061]
[1746704442197,5.12260655,1952.2,1952.0,3.27661202]
[1746704442492,5.12260655,1952.2,1952.0,4.32818849]
[1746704442800,5.12184442,1952.5,1952.2,3.0]
[1746704443177,5.12180023,1952.5,1952.3,0.27502345]
[1746704444983,5.12142754,1952.6,1952.3,2.00901667]
[1746704445265,11.30640618,1952.9,1952.4,3.0]
[1746704445470,5.12152996,1952.6,1952.5,0.27451323]
[1746704446201,5.87792996,1952.6,1952.5,0.27451323]
[1746704446801,5.12188605,1952.5,1952.1,9.8566675]
[1746704447898,5.12146853,1952.6,1952.3,1.73399322]
[1746704448199,5.12125342,1952.7,1952.4,3.0]
[1746704448379,5.12125342,1952.7,1952.5,0.7605]
[1746704450668,5.12125342,1952.7,1952.3,2.56629322]
[1746704450873,5.12169241,1952.5,1952.3,2.56629322]
[1746704451198,5.1222705,1952.3,1952.1,6.9123]
[1746704451368,5.1222705,1952.3,1952.1,0.8323]
[1746704451700,5.12216469,1952.3,1952.1,0.8323]
[1746704451870,5.12216469,1952.3,1952.1,4.83298249]
[1746704452070,5.12208466,1952.4,1952.1,4.83298249]
[1746704452382,5.12193761,1952.4,1952.1,11.68954463]
[1746704452584,5.12178757,1952.5,1952.1,11.68954463]
[1746704452585,5.12178757,1952.5,1952.2,0.766]
[1746704452789,5.12178757,1952.5,1952.3,3.0]
[1746704452790,5.12164206,1952.5,1952.3,3.0]
[1746704452999,5.12155544,1952.6,1952.3,3.88882847]
[1746704453488,10.24316608,1952.6,1952.3,3.88882847]
[1746704453703,5.12126716,1952.7,1952.3,3.88882847]
[1746704454011,5.12129312,1952.7,1952.3,10.74490801]
[1746704454215,5.12129312,1952.7,1952.4,0.8051]
[1746704454513,5.12129312,1952.7,1952.4,1.9601008]
[1746704455512,5.12149419,1952.6,1952.4,1.9601008]
[1746704456415,5.12127632,1952.7,1952.4,1.9601008]
[1746704458523,5.12127632,1952.7,1952.4,7.08194396]
[1746704458818,5.12127632,1952.7,1952.4,1.9601008]
[1746704460215,10.24264254,1952.7,1952.4,1.9601008]
[1746704460409,5.12148754,1952.6,1952.2,8.95136542]
[1746704460817,10.24310382,1952.6,1952.2,8.95136542]
[1746704461024,5.12151742,1952.6,1952.2,8.95151467]
[1746704461398,5.12151742,1952.6,1952.3,0.27845922]
[1746704461993,5.12151742,1952.6,1952.3,5.40056881]
[1746704462189,0.7714,1954.1,1953.2,28.413681]
[1746704462390,0.7714,1954.1,1952.9,0.55]
[1746704462391,5.11875511,1953.6,1953.5,0.778]
[1746704462589,5.11858087,1953.7,1953.4,0.4786345]
[1746704462590,0.7714,1953.7,1953.4,0.4786345]
[1746704462790,0.7714,1953.7,1953.5,0.27262322]
[1746704462791,5.11887377,1953.6,1953.5,0.27262322]
[1746704463203,5.11901714,1953.5,1953.4,0.4786345]
[1746704463405,5.91861714,1953.5,1953.4,0.4786345]
[1746704463693,5.1201699,1953.1,1952.9,0.4786345]
[1746704464722,5.1201699,1953.1,1952.8,0.4786345]
[1746704464944,5.94656797,1953.1,1952.8,0.4786345]
[1746704465090,5.1203277,1953.0,1952.8,0.4786345]
[1746704465728,5.1203277,1953.0,1952.6,9.35786927]
[1746704465908,5.1203277,1953.0,1952.6,10.80580517]
[1746704466826,5.1203277,1953.0,1952.7,0.4786345]
[1746704467014,5.94655631,1953.1,1952.7,0.4786345]
[1746704467339,5.12042298,1953.0,1952.7,0.4786345]
[1746704469307,5.94648782,1953.1,1952.7,0.4786345]
[1746704469709,5.94648782,1953.1,1952.7,5.59974508]
[1746704470006,5.11992574,1953.2,1952.7,5.59974508]
[1746704470007,5.11992574,1953.2,1952.8,5.897649]
[1746704471311,5.12042574,1953.0,1952.8,0.7768]
[1746704471636,5.12042574,1953.0,1952.6,9.33034034]
[1746704471834,5.12042574,1953.0,1952.6,11.38353561]
[1746704472534,5.12008119,1953.1,1952.6,6.26226536]
[1746704472706,5.1203427,1953.0,1952.7,0.47855608]
[1746704472905,5.1203427,1953.0,1952.7,5.59965165]
[1746704473210,5.1203427,1953.0,1952.7,0.47855608]
[1746704473906,10.24090371,1953.0,1952.7,0.47855608]
[1746704474098,10.24090371,1953.0,1952.8,0.47855608]
[1746704474099,5.89458989,1952.9,1952.8,0.47855608]
[1746704474742,5.89458989,1952.9,1952.2,5.88282612]
[1746704474743,5.1212067,1952.7,1952.3,5.60062886]
[1746704474902,5.12140513,1952.6,1952.4,0.27618855]
[1746704476402,5.89461297,1952.9,1952.4,0.27618855]
[1746704476608,5.12162392,1952.6,1952.4,0.27618855]
[1746704476836,5.12163892,1952.5,1952.4,0.27618855]
[1746704477358,5.12163892,1952.5,1952.2,3.7605]
[1746704477506,5.12163892,1952.5,1952.3,0.27660851]
[1746704480449,5.12162392,1952.6,1952.3,0.27660851]
[1746704480949,5.12045401,1953.0,1952.6,5.12128854]
[1746704481114,0.7703,1953.2,1952.7,0.27451735]
[1746704481315,5.1205221,1953.0,1952.6,5.12135971]
[1746704481543,5.89028069,1953.2,1952.8,5.12075833]
[1746704481743,11.01031373,1953.2,1952.9,0.27326636]
[1746704482450,11.01029402,1953.2,1952.9,0.27326636]
[1746704482656,5.11998069,1953.2,1952.9,0.27326636]
[1746704482954,10.24004074,1953.2,1952.9,0.27326636]
[1746704483155,5.12008672,1953.1,1952.9,0.27326636]
[1746704483355,0.7833,1953.6,1952.9,3.88982883]
[1746704483539,5.90217242,1953.6,1953.1,5.11998149]
[1746704483742,5.11916213,1953.5,1953.2,0.27144825]
[1746704484049,5.11916213,1953.5,1953.1,5.11989083]
[1746704484050,5.11905148,1953.5,1953.1,5.11989083]
[1746704484261,5.11905148,1953.5,1953.3,0.27164107]
[1746704484467,5.11905148,1953.5,1953.1,6.01917962]
[1746704484468,5.11905148,1953.5,1953.2,0.27206057]
[1746704484625,5.11905148,1953.5,1953.4,0.27122162]
[1746704484827,5.11905148,1953.5,1953.3,0.27164107]
[1746704485044,5.11905148,1953.5,1953.4,0.27122162]
[1746704485453,5.11909123,1953.5,1953.1,6.01920511]
[1746704485751,5.358,1953.7,1953.2,5.72169096]
[1746704485961,5.358,1953.7,1953.3,0.27164107]
[1746704486134,5.11896118,1953.6,1953.3,3.27164107]
[1746704486322,5.358,1953.7,1953.4,0.7611]
[1746704486654,5.11807654,1953.9,1953.5,5.1189312]
[1746704486962,5.11797542,1953.9,1953.6,3.0]
[1746704487265,6.1134,1954.1,1953.7,6.16613302]
[1746704487266,5.11757141,1954.1,1953.7,6.16613302]
[1746704487423,5.11730544,1954.2,1953.7,6.16604487]
[1746704487424,5.11729385,1954.2,1953.7,6.16604487]
[1746704487630,10.46783264,1954.4,1953.9,5.11776866]
[1746704487960,5.11676253,1954.4,1954.0,3.26748651]
[1746704488170,5.92601399,1954.5,1954.1,0.8237]
[1746704488171,5.11650465,1954.5,1954.1,0.8237]
[1746704488467,5.11630009,1954.6,1954.2,3.0]
[1746704488624,5.11640996,1954.5,1954.2,0.26583957]
[1746704488830,5.11676126,1954.4,1954.2,0.26583957]
[1746704489137,5.1171835,1954.2,1954.1,1.20860698]
[1746704489352,5.11701554,1954.3,1954.1,1.20860698]
[1746704490060,5.11666963,1954.4,1954.1,1.20860698]
[1746704490426,5.11624283,1954.6,1954.2,8.11716107]
[1746704490627,5.55581017,1954.7,1954.3,8.11690635]
[1746704490833,0.4398208,1954.7,1954.3,3.0]
[1746704491034,0.4398208,1954.7,1954.6,8.11613629]
[1746704491244,0.4398208,1954.7,1954.6,10.2281872]
[1746704491492,0.4398208,1954.7,1954.6,10.54124301]
[1746704491978,0.4398208,1954.7,1954.6,5.37395194]
[1746704492180,0.4398208,1954.7,1954.6,4.05070103]
[1746704492678,0.4398208,1954.7,1954.6,0.26190103]
[1746704492878,5.55569535,1954.7,1954.6,0.26190103]
[1746704493044,5.11684228,1954.4,1954.2,6.08]
[1746704493375,6.1278,1954.5,1953.5,0.8044]
[1746704493581,5.1176339,1954.1,1953.6,5.11857453]
[1746704493779,5.11696271,1954.3,1953.7,0.51185745]
[1746704493944,5.11788589,1954.0,1953.5,5.92323401]
[1746704494141,0.7518,1954.0,1953.2,0.7841]
[1746704494372,5.11838712,1953.8,1953.2,1.16290532]
[1746704494577,5.11809953,1953.9,1953.6,3.0]
[1746704494908,0.7518,1954.3,1953.8,3.0]
[1746704494909,6.0998,1954.3,1953.8,3.0]
[1746704495042,5.11750712,1954.1,1953.9,0.3]
[1746704495444,5.11764234,1954.1,1953.7,0.7841]
[1746704496182,5.117967,1954.0,1953.7,0.7841]
[1746704496349,5.11783456,1954.0,1953.7,0.7841]
[1746704496549,5.1176115,1954.1,1953.8,3.0]
[1746704496858,5.1176115,1954.1,1953.8,3.89025645]
[1746704497586,5.11772578,1954.0,1953.8,0.89025645]
[1746704497772,5.11772578,1954.0,1953.7,0.7841]
[1746704498287,5.11757491,1954.1,1953.8,3.0]
[1746704499203,10.23471293,1954.2,1953.8,3.0]
[1746704499595,5.11729295,1954.2,1953.9,0.05117688]
[1746704499794,5.11745883,1954.1,1953.8,3.0]
[1746704500901,5.348,1954.3,1953.7,11.98240843]
[1746704500902,5.11796918,1953.9,1953.7,0.7841]
[1746704501412,5.11833407,1953.8,1953.6,3.0]
[1746704501902,5.92436612,1954.1,1953.6,8.11871239]
[1746704501903,5.11782179,1954.0,1953.6,8.11871239]
[1746704502106,5.1178825,1954.0,1953.6,8.11871239]
[1746704502786,6.1808,1954.3,1953.6,3.0]
[1746704502968,5.11788592,1954.0,1953.6,9.87776554]
[1746704503171,5.11825021,1953.8,1953.6,4.75903853]
[1746704503386,5.11778615,1954.0,1953.6,4.81021924]
[1746704503692,5.11778615,1954.0,1953.7,5.11847641]
[1746704503899,5.11758451,1954.1,1953.7,5.11828997]
[1746704504097,5.11758451,1954.1,1953.8,0.511829]
[1746704504296,5.11758451,1954.1,1953.9,3.0]
[1746704504487,5.11734522,1954.2,1953.9,3.0]
[1746704505194,5.11734522,1954.2,1954.0,0.7845]
[1746704505799,5.11744537,1954.1,1954.0,0.7845]
[1746704506002,5.1173593,1954.2,1954.0,0.7845]
[1746704506164,5.1173593,1954.2,1954.0,3.7845]
[1746704506367,5.1173593,1954.2,1954.1,0.26124359]
[1746704506980,5.11707806,1954.3,1954.1,0.26124359]
[1746704507302,5.04889133,1954.3,1954.1,0.26124359]
[1746704507911,5.1171835,1954.2,1954.1,0.26124359]
[1746704508978,5.11764783,1954.1,1953.8,3.511829]
[1746704509213,5.11760856,1954.1,1953.9,0.61277139]
[1746704509364,5.11770726,1954.0,1953.9,0.61277139]
[1746704510219,5.11770726,1954.0,1953.9,0.26158849]
[1746704510506,5.11770726,1954.0,1953.8,0.511829]
[1746704510709,5.11770726,1954.0,1953.9,0.26216416]
[1746704510917,5.11770726,1954.0,1953.8,0.511829]
[1746704511401,5.1173328,1954.2,1953.9,3.26216416]
[1746704511604,5.1173328,1954.2,1954.0,0.32621642]
[1746704512107,5.1173328,1954.2,1954.1,0.26091467]
[1746704513403,10.23425034,1954.3,1954.1,0.26091467]
[1746704513588,5.1171835,1954.2,1954.1,0.26091467]
[1746704514207,5.11748246,1954.1,1953.8,3.511829]
[1746704514391,5.11748246,1954.1,1953.9,0.3511829]
[1746704516921,5.11770726,1954.0,1953.9,0.3511829]
[1746704517229,5.11748246,1954.1,1953.9,0.3511829]
[1746704517716,5.11666327,1954.4,1953.7,3.7915]
[1746704517896,5.11808271,1953.9,1953.7,3.7915]
[1746704518415,5.117853,1954.0,1953.7,3.7915]
[1746704518607,5.11798784,1953.9,1953.7,3.7915]
[1746704518810,10.23617519,1953.9,1953.7,3.7915]
[1746704519010,5.11823113,1953.8,1953.7,3.7915]
[1746704519198,5.11810883,1953.9,1953.7,3.7915]
[1746704519516,10.23630395,1953.9,1953.7,3.7915]
[1746704519696,5.11810883,1953.9,1953.7,3.7915]
[1746704521105,5.11795138,1954.0,1953.7,3.7915]
[1746704521300,5.11795138,1954.0,1953.8,0.64114225]
[1746704521835,5.11797474,1953.9,1953.8,0.64114225]
[1746704523124,5.11792512,1954.0,1953.8,0.64114225]
[1746704523507,5.11755156,1954.1,1953.8,0.64114225]
[1746704523714,10.23523254,1954.1,1953.8,0.64114225]
[1746704523912,5.11771379,1954.0,1953.8,0.64114225]
[1746704524424,5.11772796,1954.0,1953.8,0.64114225]
[1746704524618,5.11755156,1954.1,1953.8,0.64114225]
[1746704525932,5.11733151,1954.2,1954.0,3.0]
[1746704526226,5.11709621,1954.3,1954.1,0.56122796]
[1746704526526,5.1171835,1954.2,1954.1,0.56122796]
[1746704526830,5.11708642,1954.3,1954.1,0.56122796]
[1746704528034,10.23421824,1954.3,1954.1,0.56122796]
[1746704528525,5.11708642,1954.3,1954.1,0.56122796]
[1746704529152,5.1161943,1954.6,1954.3,3.0]
[1746704529153,5.11658866,1954.5,1954.3,3.0]
[1746704529330,5.11658866,1954.5,1954.4,0.25988342]
[1746704529529,5.11658866,1954.5,1954.3,3.37771]
[1746704529745,5.11658866,1954.5,1954.4,0.25988342]
[1746704530046,5.11658866,1954.5,1954.3,3.37771]
[1746704530249,5.1163077,1954.6,1954.4,0.25988342]
[1746704530448,5.11625132,1954.6,1954.4,0.62364276]
[1746704530651,5.11625132,1954.6,1954.4,0.36375934]
[1746704530851,5.11625132,1954.6,1954.5,0.25946443]
[1746704531314,0.4398208,1954.7,1954.6,3.0]
[1746704531644,0.4398208,1954.7,1954.6,9.21275478]
[1746704531960,0.4398208,1954.7,1954.6,4.09661849]
[1746704532421,0.4398208,1954.7,1954.6,0.25904549]
[1746704532621,6.33859535,1954.7,1954.6,0.25904549]
[1746704532830,6.33878447,1954.7,1954.4,3.0]
[1746704533035,6.33878447,1954.7,1954.6,0.25904549]
[1746704533240,5.11613629,1954.6,1954.5,0.25946443]
[1746704533519,6.33878447,1954.7,1954.5,0.32594644]
[1746704533760,5.11613629,1954.6,1954.5,0.32594644]
[1746704534057,5.11665984,1954.4,1954.3,6.45771]
[1746704534431,5.1171835,1954.2,1953.9,0.7859]
[1746704534646,5.11764064,1954.1,1953.8,3.0]
[1746704534983,5.11720166,1954.2,1953.8,5.11807258]
[1746704535143,5.11720166,1954.2,1953.8,8.11807258]
[1746704535531,5.11745045,1954.1,1953.7,11.98426315]
[1746704535732,5.11745045,1954.1,1953.8,4.19842632]
[1746704536032,5.11745045,1954.1,1953.8,1.19842632]
[1746704536452,5.11745045,1954.1,1953.9,0.26280147]
[1746704536765,5.11745045,1954.1,1953.8,4.59127595]
[1746704536943,5.11745045,1954.1,1953.9,0.26280147]
[1746704537146,5.11745045,1954.1,1953.8,4.59127595]
[1746704537345,5.11745045,1954.1,1953.9,0.26280147]
[1746704537546,5.11745045,1954.1,1953.8,4.59127595]
[1746704537744,5.11735187,1954.2,1953.9,0.72192907]
[1746704538477,5.11746292,1954.1,1953.9,0.72192907]
[1746704539175,5.11734876,1954.2,1953.9,0.72192907]
[1746704539680,5.11746652,1954.1,1953.9,0.72192907]
[1746704540575,5.11734918,1954.2,1953.9,0.72192907]
[1746704542685,5.11763229,1954.1,1953.9,0.26280147]
[1746704542850,5.11770726,1954.0,1953.9,0.26280147]
[1746704543173,5.11770726,1954.0,1953.9,0.26310722]
[1746704543351,5.11770726,1954.0,1953.8,3.39284963]
[1746704543678,5.11770726,1954.0,1953.9,0.26310722]
[1746704544089,5.11796918,1953.9,1953.7,0.7859]
[1746704544295,5.11875511,1953.6,1953.5,0.8209]
[1746704544463,5.1185469,1953.7,1953.5,0.8209]
[1746704544795,5.1185469,1953.7,1953.5,1.19719372]
[1746704545092,5.1185469,1953.7,1953.5,1.00793785]
[1746704545289,5.1185469,1953.7,1953.0,24.35362508]
[1746704545290,5.11948617,1953.4,1953.1,0.752]
[1746704545494,5.11948617,1953.4,1952.9,6.08]
[1746704545495,5.11964173,1953.3,1952.9,5.87248755]
[1746704545651,5.11964173,1953.3,1953.0,3.0]
[1746704545850,5.11964173,1953.3,1952.9,10.99288609]
[1746704546087,5.11964173,1953.3,1953.0,1.09928861]
[1746704546290,5.12006553,1953.1,1953.0,1.09928861]
[1746704546463,0.8119,1953.3,1952.9,1.14345756]
[1746704546660,5.11990375,1953.2,1952.9,0.752]
[1746704546995,5.11990375,1953.2,1952.9,3.752]
[1746704547535,5.1199782,1953.2,1952.9,0.752]
[1746704547702,5.1199782,1953.2,1952.9,3.752]
[1746704547895,5.93156286,1953.3,1952.9,5.87253808]
[1746704548200,5.11981359,1953.2,1953.0,3.0]
[1746704548361,11.05132161,1953.3,1953.0,3.0]
[1746704548561,5.11986807,1953.2,1953.0,3.0]
[1746704548761,5.93161096,1953.3,1953.0,3.0]
[1746704548997,5.93161096,1953.3,1953.0,4.08554708]
[1746704549173,5.11944367,1953.4,1953.0,9.20585479]
[1746704549602,5.11944367,1953.4,1953.0,4.08554708]
[1746704550097,5.11962896,1953.3,1953.0,4.08554708]
[1746704551474,5.11936248,1953.4,1953.1,0.26596912]
[1746704551786,5.11940416,1953.4,1953.1,0.26596912]
[1746704552106,5.11965224,1953.3,1953.1,0.26596912]
[1746704552400,5.11980339,1953.2,1953.1,0.26596912]
[1746704553477,5.12025026,1953.1,1952.8,8.1208491]
[1746704553687,5.11993637,1953.2,1952.8,10.46747197]
[1746704553906,5.11968749,1953.3,1952.9,5.12054529]
[1746704554203,5.11971722,1953.3,1953.0,0.26783029]
[1746704554411,5.11982898,1953.2,1953.0,0.26783029]
[1746704554701,5.11982898,1953.2,1952.8,10.46735838]
[1746704554908,5.11982898,1953.2,1953.1,0.26609452]
[1746704555112,5.12017605,1953.1,1952.9,1.04673584]
[1746704555615,5.11996381,1953.2,1952.9,1.04673584]
[1746704556176,5.11968699,1953.3,1952.9,1.42723046]
[1746704556611,5.11968699,1953.3,1953.0,3.0]
[1746704556815,5.11968699,1953.3,1953.0,3.95476598]
[1746704557317,10.23944248,1953.3,1953.0,3.95476598]
[1746704557815,5.11984518,1953.2,1953.0,3.95476598]
[1746704558118,5.11972157,1953.3,1953.0,3.95476598]
[1746704558525,5.11984004,1953.2,1953.0,0.95476598]
[1746704558696,5.12006553,1953.1,1952.8,3.0]
[1746704560536,10.24035657,1953.1,1952.8,3.0]
[1746704560815,5.12006553,1953.1,1952.8,3.0]
[1746704561190,10.23994302,1953.2,1952.8,8.12075401]
[1746704561379,5.12019625,1953.1,1952.8,3.0]
[1746704561582,5.12019625,1953.1,1952.9,0.26750961]
[1746704562102,5.11984831,1953.2,1952.9,0.26750961]
[1746704562297,5.11991301,1953.2,1952.9,5.38808064]
[1746704562522,5.11991301,1953.2,1952.9,0.26750961]
[1746704563918,5.11991301,1953.2,1952.9,1.99787406]
[1746704564115,10.23994062,1953.2,1952.9,1.99787406]
[1746704564419,5.11991301,1953.2,1952.9,3.13238782]
[1746704565322,5.12016893,1953.1,1952.9,3.13238782]
[1746704566625,5.12016893,1953.1,1952.9,1.99787406]
[1746704570049,5.12008044,1953.1,1952.9,1.99787406]
[1746704570442,10.24035984,1953.1,1952.9,1.99787406]
[1746704570894,10.24035407,1953.1,1952.9,1.99787406]
[1746704571214,10.24035337,1953.1,1952.9,1.99787406]
[1746704571423,5.12008044,1953.1,1952.9,1.99787406]
[1746704571634,5.11989483,1953.2,1952.9,2.5368365]
[1746704572003,5.12013098,1953.1,1952.9,2.5368365]
[1746704572407,5.11984383,1953.2,1952.9,2.5368365]
[1746704572596,5.12006865,1953.1,1952.9,2.5368365]
[1746704572791,5.11984383,1953.2,1952.9,2.5368365]
[1746704573029,11.27702129,1953.5,1952.9,2.5368365]
[1746704573030,5.1192792,1953.4,1952.9,2.5368365]
[1746704573233,5.12016444,1953.1,1952.9,2.5368365]
[1746704573525,5.1201067,1953.1,1952.9,2.5368365]
[1746704573845,10.24042655,1953.1,1952.9,2.5368365]
[1746704574547,5.1203277,1953.0,1952.9,2.5368365]
[1746704574842,10.24053139,1953.1,1952.9,2.5368365]
[1746704575412,5.1203277,1953.0,1952.9,2.5368365]
[1746704575608,5.1203277,1953.0,1952.9,1.99787406]
[1746704575843,5.12021246,1953.1,1952.9,1.99787406]
[1746704576154,10.24050177,1953.1,1952.9,1.99787406]
[1746704576543,5.12021246,1953.1,1952.9,1.99787406]
[1746704576840,5.11997681,1953.2,1952.9,1.99787406]
[1746704577043,5.11989678,1953.2,1952.9,2.49766147]
[1746704577216,10.23946992,1953.3,1953.1,1.73036445]
[1746704577416,5.11968746,1953.3,1953.2,0.26573448]
[1746704577625,5.11968746,1953.3,1953.1,1.73036445]
[1746704577817,5.11968746,1953.3,1953.2,0.26573448]
[1746704578126,5.11968746,1953.3,1953.1,1.73036445]
[1746704578331,5.11968746,1953.3,1953.2,0.26573448]
[1746704578747,5.11968746,1953.3,1953.1,1.73036445]
[1746704578945,5.11968746,1953.3,1953.2,0.26573448]
[1746704579660,5.11968746,1953.3,1953.1,1.73036445]
[1746704579817,5.11968746,1953.3,1953.2,0.26573448]
[1746704580017,5.11968746,1953.3,1953.1,1.73036445]
[1746704580217,5.11968746,1953.3,1953.2,0.26573448]
[1746704580443,5.11968746,1953.3,1953.1,1.73036445]
[1746704580613,5.11968746,1953.3,1953.2,0.26573448]
[1746704580835,5.11968746,1953.3,1953.1,1.73036445]
[1746704581040,5.11968746,1953.3,1953.2,0.26573448]
[1746704581327,5.11968746,1953.3,1953.1,1.73036445]
[1746704581527,5.11968746,1953.3,1953.2,0.26573448]
[1746704581854,5.11968746,1953.3,1953.1,1.73036445]
[1746704582068,5.11968746,1953.3,1953.2,0.26573448]
[1746704582364,5.11968746,1953.3,1953.1,1.73036445]
[1746704582569,11.0425877,1953.4,1953.2,0.26573448]
[1746704582765,5.11938763,1953.4,1953.1,7.91539777]
[1746704583060,5.93445077,1953.5,1953.3,4.73036445]
[1746704583363,5.11905077,1953.5,1953.3,4.73036445]
[1746704583529,5.11905077,1953.5,1953.4,0.26489568]
[1746704583730,5.11905077,1953.5,1953.3,4.73036445]
[1746704584055,5.11905077,1953.5,1953.4,0.26489568]
[1746704584476,5.11905077,1953.5,1953.3,4.73036445]
[1746704584631,5.11905077,1953.5,1953.4,0.26489568]
[1746704584826,5.11905077,1953.5,1953.3,4.73036445]
[1746704585085,5.11905077,1953.5,1953.4,0.26489568]
[1746704585359,5.11905077,1953.5,1953.3,4.73036445]
[1746704585530,5.1192792,1953.4,1953.3,3.0]
[1746704585860,5.1192792,1953.4,1953.1,3.0]
[1746704586060,5.1192792,1953.4,1953.1,4.4999326]
[1746704586360,5.11905551,1953.5,1953.1,4.4999326]
[1746704586566,0.8154,1953.6,1953.2,6.85006758]
[1746704586768,5.9342628,1953.6,1953.2,6.85006758]
[1746704586924,5.11901894,1953.5,1953.2,1.73036445]
[1746704587654,5.93431069,1953.6,1953.2,6.8500653]
[1746704587851,5.93431069,1953.6,1953.3,3.0]
[1746704587852,5.11891069,1953.6,1953.3,3.0]
[1746704588022,5.11891069,1953.6,1953.3,3.7864]
[1746704588428,5.11891069,1953.6,1953.3,8.90591634]
[1746704588841,5.11891069,1953.6,1953.3,3.7864]
[1746704590871,10.23788442,1953.6,1953.3,3.7864]
[1746704591369,5.11891069,1953.6,1953.3,3.7864]
[1746704591766,5.11911189,1953.5,1953.3,3.7864]
[1746704591972,5.11911189,1953.5,1953.3,3.0]
[1746704593076,5.11895915,1953.6,1953.3,3.0]